bitfinex/quotes_ETHUSD_20230118
["timestamp","ask_amount","ask_price","bid_price","bid_amount"]
[1674084771278,0.13513582,1526.4,1526.3,0.066]
[1674084771495,0.13513582,1526.4,1525.8,0.066]
[1674084771859,1.542,1525.9,1525.6,0.066]
[1674084772179,1.542,1525.9,1525.4,36.88565]
[1674084772180,0.1542,1525.9,1525.4,0.066]
[1674084772347,0.4916,1525.8,1525.1,0.066]
[1674084772559,1.533,1525.5,1525.0,0.11305386]
[1674084772786,1.533,1525.5,1525.0,4.98531323]
[1674084773002,0.4918,1525.4,1525.0,0.11305386]
[1674084773173,1.532,1525.2,1525.0,0.11305386]
[1674084774551,1.542,1525.3,1525.0,0.11305386]
[1674084774979,0.4918,1525.2,1525.0,0.11305386]
[1674084776335,0.4918,1525.3,1525.0,0.11305386]
[1674084776530,3.0338,1525.4,1525.0,0.11305386]
[1674084776781,1.0,1525.4,1525.1,1.04609124]
[1674084777010,0.066,1525.7,1525.2,1.04179259]
[1674084777224,1.0,1526.0,1525.3,14.47072007]
[1674084777440,1.0,1526.0,1525.4,7.91460081]
[1674084777583,0.188,1526.3,1525.6,7.89311741]
[1674084777796,0.066,1526.5,1525.8,13.10782]
[1674084778010,1.542,1526.7,1526.0,1.533]
[1674084778223,2.0333,1526.7,1526.0,5.48029352]
[1674084778485,2.0333,1526.7,1526.1,0.94729352]
[1674084778800,0.4913,1526.7,1526.2,7.49520135]
[1674084779009,0.4913,1526.7,1526.3,0.74952014]
[1674084779372,0.4913,1526.7,1526.3,1.68393798]
[1674084780667,2.0333,1526.7,1526.3,0.74952014]
[1674084780999,2.0333,1526.7,1526.2,0.066]
[1674084781000,1.542,1526.6,1526.2,0.066]
[1674084781166,1.54,1526.3,1525.8,0.066]
[1674084781380,1.536,1526.1,1525.9,0.96017175]
[1674084781646,1.536,1526.1,1525.7,1.066]
[1674084781833,1.54,1525.8,1525.7,1.0]
[1674084782423,2.0316,1525.8,1525.3,0.17017926]
[1674084782609,1.541,1525.8,1525.1,12.4376]
[1674084782915,1.532,1525.6,1525.1,0.066]
[1674084783062,1.532,1525.6,1525.1,0.67362639]
[1674084783267,0.6458,1525.7,1525.0,0.17905386]
[1674084783268,1.542,1525.4,1525.0,0.17905386]
[1674084783544,1.542,1525.4,1525.0,1.1591451]
[1674084783695,1.542,1525.2,1525.0,0.11305386]
[1674084784062,1.6872,1525.1,1525.0,0.11305386]
[1674084784239,1.533,1525.1,1525.0,0.11305386]
[1674084784594,1.534,1525.2,1525.0,0.11305386]
[1674084784769,2.0258,1525.2,1525.0,0.11305386]
[1674084785477,1.534,1525.2,1525.0,0.11305386]
[1674084786948,1.534,1525.2,1525.1,1.0]
[1674084787222,2.0328,1525.3,1525.1,1.0]
[1674084787382,0.066,1525.4,1525.1,8.71431663]
[1674084787738,1.066,1525.7,1525.2,7.59793259]
[1674084787900,1.0,1525.7,1525.4,6.55557]
[1674084788107,1.0,1525.7,1525.4,7.6375766]
[1674084788335,1.0,1525.7,1525.5,7.5711766]
[1674084788696,1.0,1525.7,1525.6,14.87840758]
[1674084788904,1.0,1525.7,1525.6,14.94440758]
[1674084789123,1.0,1525.7,1525.6,15.45443006]
[1674084789427,0.066,1526.1,1525.6,16.99643006]
[1674084789640,0.4915,1526.3,1525.8,13.1077]
[1674084789787,0.4915,1526.3,1525.9,0.97305249]
[1674084790003,0.4914,1526.4,1526.0,0.96875862]
[1674084790216,0.4914,1526.5,1526.1,7.51273175]
[1674084790475,0.4914,1526.5,1526.2,0.75127318]
[1674084790631,0.4914,1526.5,1526.2,7.30335318]
[1674084790846,0.4914,1526.5,1526.2,7.36935318]
[1674084791107,0.4914,1526.5,1526.2,0.81727318]
[1674084791328,0.4914,1526.5,1526.1,7.57873175]
[1674084792004,2.45671,1526.5,1526.1,0.066]
[1674084792214,5.35374759,1526.4,1525.8,0.066]
[1674084792565,2.041,1526.2,1525.5,1.066]
[1674084792776,5.98486,1526.0,1525.5,1.0]
[1674084792985,9.34260759,1526.0,1525.5,1.0]
[1674084793196,2.062,1525.8,1525.5,1.0]
[1674084793405,2.062,1525.6,1525.5,1.0]
[1674084793619,9.28660759,1525.6,1525.2,0.12425974]
[1674084793841,3.98964759,1525.5,1525.2,0.12425974]
[1674084794003,4.96669,1525.4,1525.2,0.12425974]
[1674084794421,0.4918,1525.3,1525.2,0.12425974]
[1674084796033,2.5328,1525.3,1525.2,0.12425974]
[1674084796263,3.289349,1525.3,1525.2,0.12425974]
[1674084797620,0.066,1525.4,1525.2,0.12425974]
[1674084797780,4.57338,1525.7,1525.2,0.12425974]
[1674084797992,1.96619,1525.8,1525.2,1.14886055]
[1674084797993,1.066,1525.8,1525.2,1.14886055]
[1674084798214,1.066,1525.8,1525.3,1.13518962]
[1674084798215,1.4916,1525.8,1525.3,1.13518962]
[1674084798462,1.0,1525.5,1525.4,1.0160066]
[1674084798631,0.066,1526.0,1525.4,11.93772295]
[1674084798843,1.0,1526.3,1525.5,3.59404765]
[1674084799106,1.0,1526.3,1525.6,20.64967577]
[1674084799107,1.4915,1526.3,1525.6,20.64967577]
[1674084799260,0.4915,1526.3,1525.7,0.98164106]
[1674084799472,0.4914,1526.4,1525.8,6.65175411]
[1674084799721,0.4914,1526.4,1525.8,6.71775411]
[1674084800472,3.4914,1526.4,1525.8,6.71775411]
[1674084800782,2.044,1525.9,1525.8,0.066]
[1674084801003,2.044,1525.9,1525.5,1.82113937]
[1674084801331,2.041,1525.7,1525.5,1.82113937]
[1674084801753,4.42456,1525.6,1525.5,1.82113937]
[1674084802038,7.7132457,1525.6,1525.5,1.82113937]
[1674084802251,10.7792457,1525.6,1525.2,0.12425974]
[1674084802406,2.046,1525.4,1525.2,0.12425974]
[1674084802773,4.01269,1525.4,1525.2,0.12425974]
[1674084802992,0.4918,1525.3,1525.2,1.12425974]
[1674084803871,0.066,1525.5,1525.2,1.12425974]
[1674084804195,0.066,1525.9,1525.3,1.14562211]
[1674084804405,2.062,1526.0,1525.4,13.11074]
[1674084804655,0.4916,1525.9,1525.4,13.17674]
[1674084804817,0.4916,1525.9,1525.5,1.317674]
[1674084805031,3.06421472,1526.0,1525.5,1.317674]
[1674084805726,3.06421472,1526.0,1525.4,0.066]
[1674084805958,3.06421472,1526.0,1525.3,7.76737211]
[1674084806273,1.0,1525.8,1525.3,7.76737211]
[1674084806798,1.0,1525.8,1525.3,0.066]
[1674084807011,6.35374759,1525.8,1525.2,0.19025974]
[1674084807331,3.062,1525.6,1525.2,0.12425974]
[1674084807472,1.3062,1525.5,1525.2,0.12425974]
[1674084808125,1.7979,1525.5,1525.2,0.12425974]
[1674084808335,1.0,1525.5,1525.2,0.12425974]
[1674084808771,1.4917,1525.6,1525.2,0.12425974]
[1674084808988,0.4917,1525.6,1525.2,0.12425974]
[1674084809200,0.4917,1525.6,1525.3,1.0]
[1674084810308,0.4917,1525.6,1525.5,1.0]
[1674084810576,0.4917,1525.7,1525.3,1.0]
[1674084810727,2.5536,1525.8,1525.3,6.55596]
[1674084810942,5.5536,1525.8,1525.3,6.62196]
[1674084811189,6.874788,1525.8,1525.3,8.60783897]
[1674084811584,0.066,1525.8,1525.3,16.17992557]
[1674084811793,1.0,1525.9,1525.4,1.0160066]
[1674084812025,1.0,1525.7,1525.5,20.67244353]
[1674084812238,1.0,1525.7,1525.6,3.07036176]
[1674084812583,1.0,1525.9,1525.6,16.17994176]
[1674084812791,1.0,1525.9,1525.8,13.10786]
[1674084813005,1.0,1525.9,1525.8,13.17386]
[1674084813581,0.15323604,1526.4,1525.8,14.16409076]
[1674084813792,0.08723604,1526.4,1525.9,2.3851677]
[1674084814022,0.08723604,1526.4,1526.0,13.10593]
[1674084814245,0.08723604,1526.4,1526.0,13.17193]
[1674084814438,0.08723604,1526.4,1526.0,15.38295677]
[1674084815284,0.08723604,1526.4,1526.0,8.82988677]
[1674084816417,4.01807604,1526.4,1526.0,0.066]
[1674084816626,4.01807604,1526.4,1525.7,7.62011]
[1674084816627,6.76492964,1526.4,1525.7,7.62011]
[1674084816947,2.046,1526.2,1525.7,1.066]
[1674084817162,2.062,1526.0,1525.7,1.0]
[1674084817364,5.35374759,1526.0,1525.7,1.0]
[1674084817580,5.41974759,1526.0,1525.9,1.0]
[1674084817804,9.30427235,1526.0,1525.9,1.0]
[1674084818205,9.79587235,1526.0,1525.9,1.0]
[1674084818645,11.76179235,1526.0,1525.9,1.0]
[1674084818828,13.72782235,1526.0,1525.9,1.0]
[1674084819044,13.72782235,1526.0,1525.7,1.0]
[1674084819414,1.96618,1525.8,1525.7,1.0]
[1674084820156,1.96618,1525.8,1525.4,11.7902]
[1674084823629,1.96618,1525.8,1525.4,0.066]
[1674084823630,3.93236,1525.8,1525.4,0.066]
[1674084823875,3.93236,1525.8,1525.2,0.12425974]
[1674084823987,3.0,1525.7,1525.2,0.12425974]
[1674084824203,1.96646,1525.6,1525.2,0.12425974]
[1674084827043,1.96646,1525.6,1525.2,1.12425974]
[1674084827415,1.96646,1525.6,1525.2,0.12425974]
[1674084827795,1.96646,1525.6,1525.2,7.68072974]
[1674084828155,1.96646,1525.6,1525.2,6.74672974]
[1674084834297,2.9814726,1525.6,1525.2,6.74672974]
[1674084834716,2.9814726,1525.6,1525.2,13.30323974]
[1674084835465,1.96646,1525.6,1525.2,13.30323974]
[1674084840301,1.96646,1525.6,1525.2,13.30113335]
[1674084844018,1.96646,1525.6,1525.2,6.74462335]
[1674084844231,3.93292,1525.6,1525.2,6.74462335]
[1674084844778,5.89938,1525.6,1525.2,0.18815335]
[1674084844944,0.393292,1525.5,1525.2,0.12215335]
[1674084845296,4.326572,1525.5,1525.2,0.12215335]
[1674084845726,6.293252,1525.5,1525.2,0.12215335]
[1674084845940,6.359252,1525.5,1525.2,0.12215335]
[1674084846242,0.6359252,1525.4,1525.2,0.12215335]
[1674084846399,1.96682,1525.3,1525.2,0.12215335]
[1674084846610,3.93364,1525.3,1525.2,0.12215335]
[1674084848352,9.19220759,1525.3,1525.2,0.12215335]
[1674084848521,9.25820759,1525.3,1525.2,0.12215335]
[1674084848712,10.69927687,1525.3,1525.2,0.12215335]
[1674084850704,10.69927687,1525.3,1525.2,5.335e-05]
[1674084850923,1.0,1525.2,1525.0,0.11305386]
[1674084851163,9.19298759,1525.1,1525.0,0.11305386]
[1674084851378,10.83236635,1525.1,1525.0,0.11305386]
[1674084851569,13.83236635,1525.1,1525.0,0.11305386]
[1674084852705,14.32416635,1525.1,1525.0,0.11305386]
[1674084862057,12.32416635,1525.1,1525.0,0.11305386]
[1674084862267,11.83236635,1525.1,1525.0,0.11305386]
[1674084862731,10.83236635,1525.1,1525.0,0.11305386]
[1674084863375,13.83236635,1525.1,1525.0,0.11305386]
[1674084865743,14.32416635,1525.1,1525.0,0.11305386]
[1674084870101,13.83236635,1525.1,1525.0,0.11305386]
[1674084872780,13.83236635,1525.1,1525.0,0.11061329]
[1674084877407,13.83236635,1525.1,1525.0,3.29e-06]
[1674084877408,14.46910808,1525.1,1525.0,3.29e-06]
[1674084877617,15.87576168,1525.1,1525.0,3.29e-06]
[1674084877869,16.84018588,1525.1,1524.9,0.11914313]
[1674084878087,11.34696284,1525.0,1524.9,0.11914313]
[1674084878262,19.34548752,1525.0,1524.9,0.11914313]
[1674084878469,31.77044061,1525.0,1524.8,0.03839008]
[1674084878702,5.90829688,1524.9,1524.8,0.03839008]
[1674084878914,12.10631688,1524.9,1524.8,0.03839008]
[1674084879255,15.59821688,1524.9,1524.8,0.03839008]
[1674084879836,15.76735327,1524.9,1524.8,0.03839008]
[1674084880293,15.59821688,1524.9,1524.8,0.03839008]
[1674084880621,17.24749468,1524.9,1524.8,8e-08]
[1674084881199,17.247562,1524.9,1524.8,8e-08]
[1674084881987,16.21666732,1524.9,1524.8,8e-08]
[1674084882197,17.247562,1524.9,1524.8,8e-08]
[1674084882365,16.21666732,1524.9,1524.8,8e-08]
[1674084883340,16.38580371,1524.9,1524.8,8e-08]
[1674084883558,16.73463053,1524.9,1524.8,8e-08]
[1674084883744,1.67346305,1524.8,1524.6,0.12569445]
[1674084884097,14.12524011,1524.7,1524.3,0.13524658]
[1674084884313,7.29174759,1524.6,1524.3,0.13524658]
[1674084884634,13.98290759,1524.6,1524.3,0.13524658]
[1674084884792,16.08794124,1524.6,1524.3,0.13524658]
[1674084887187,22.97794124,1524.6,1524.5,6.8e-07]
[1674084887402,17.40677549,1524.6,1524.5,6.8e-07]
[1674084887875,16.72468297,1524.6,1524.5,6.8e-07]
[1674084888237,24.63784815,1524.6,1524.3,0.13524658]
[1674084888530,3.29174759,1524.4,1524.3,0.13524658]
[1674084888664,14.39366759,1524.4,1524.3,0.13524658]
[1674084889037,15.09640932,1524.4,1524.3,0.13524658]
[1674084889722,14.45966759,1524.4,1524.3,0.13524658]
[1674084890711,15.58850932,1524.4,1524.3,0.13524658]
[1674084890944,17.66833206,1524.4,1524.3,0.13524658]
[1674084891816,19.03833206,1524.4,1524.3,0.13524658]
[1674084893652,18.54623206,1524.4,1524.3,0.13524658]
[1674084893971,17.90949033,1524.4,1524.3,0.13524658]
[1674084895073,16.30949033,1524.4,1524.3,0.13524658]
[1674084898474,3.066,1524.4,1524.3,1.10524658]
[1674084898683,3.93581,1524.5,1524.3,1.10524658]
[1674084898684,4.00181,1524.5,1524.3,1.10524658]
[1674084898889,3.93781,1524.5,1524.3,1.10524658]
[1674084899098,1.96787,1524.5,1524.3,1.10524658]
[1674084899317,4.00159,1524.6,1524.3,1.10524658]
[1674084899506,7.22733759,1524.6,1524.3,1.10524658]
[1674084899802,7.29333759,1524.6,1524.3,1.10524658]
[1674084899929,9.26113759,1524.6,1524.3,1.10524658]
[1674084903292,4.00159,1524.6,1524.3,1.10524658]
[1674084903498,3.93559,1524.6,1524.3,2.91562896]
[1674084903852,1.96779,1524.6,1524.3,2.91562896]
[1674084905495,1.96779,1524.6,1524.3,1.10524658]
[1674084905496,3.93558,1524.6,1524.3,1.10524658]
[1674084907196,3.93558,1524.6,1524.3,0.13524658]
[1674084908470,3.29174759,1524.5,1524.3,0.13524658]
[1674084908700,3.93596,1524.4,1524.3,0.13524658]
[1674084909100,5.65873076,1524.4,1524.3,0.13524658]
[1674084909319,4.72473076,1524.4,1524.3,0.13524658]
[1674084909487,4.65873076,1524.4,1524.3,0.13524658]
[1674084909696,6.62671076,1524.4,1524.3,0.13524658]
[1674084909909,6.69271076,1524.4,1524.3,0.13524658]
[1674084910768,6.69271076,1524.4,1524.3,0.08524658]
[1674084913000,2.03398,1524.4,1524.3,0.08524658]
[1674084913186,1.96798,1524.4,1524.3,0.08524658]
[1674084913697,3.93596,1524.4,1524.3,0.08524658]
[1674084914048,5.90394,1524.4,1524.3,0.08524658]
[1674084914245,5.96994,1524.4,1524.3,0.08524658]
[1674084914456,7.09289876,1524.4,1524.3,0.08524658]
[1674084914854,7.08924165,1524.4,1524.3,0.08524658]
[1674084916595,3.15328165,1524.4,1524.3,0.08524658]
[1674084916747,1.96432289,1524.4,1524.3,0.08524658]
[1674084918323,3.93230289,1524.4,1524.3,0.08524658]
[1674084918786,1.96432289,1524.4,1524.3,0.08524658]
[1674084919390,5.25607048,1524.4,1524.3,0.08524658]
[1674084919601,12.98702753,1524.4,1524.3,0.08524658]
[1674084919982,13.47912753,1524.4,1524.3,0.08524658]
[1674084926888,12.98702753,1524.4,1524.3,0.08524658]
[1674084932041,13.34006471,1524.4,1524.3,0.08524658]
[1674084934744,11.37208471,1524.4,1524.3,0.08524658]
[1674084934956,13.34006471,1524.4,1524.3,0.08524658]
[1674084935128,13.57006471,1524.4,1524.3,0.08524658]
[1674084935342,16.28209802,1524.4,1524.3,0.08524658]
[1674084935598,17.3052632,1524.4,1524.3,0.08161732]
[1674084935780,17.98755013,1524.4,1524.3,0.08161732]
[1674084936093,17.98981642,1524.4,1524.3,0.08161732]
[1674084936457,16.96438495,1524.4,1524.3,0.08161732]
[1674084937819,17.98945433,1524.4,1524.3,0.08161732]
[1674084938757,17.98948978,1524.4,1524.3,0.08161732]
[1674084939874,16.62526954,1524.4,1524.3,0.08161732]
[1674084940084,17.98948978,1524.4,1524.3,0.08161732]
[1674084940302,17.98911447,1524.4,1524.3,0.08161732]
[1674084940515,16.62489423,1524.4,1524.3,0.08161732]
[1674084942021,16.28329853,1524.4,1524.3,0.08161732]
[1674084942211,14.51529853,1524.4,1524.3,0.08161732]
[1674084942425,14.02319853,1524.4,1524.3,0.08161732]
[1674084942637,13.34006471,1524.4,1524.3,0.08161732]
[1674084944819,14.02319853,1524.4,1524.3,0.08161732]
[1674084945490,13.34006471,1524.4,1524.3,0.08161732]
[1674084946397,14.02319853,1524.4,1524.3,0.08161732]
[1674084946964,14.25319853,1524.4,1524.3,0.08161732]
[1674084947895,16.81892805,1524.4,1524.3,0.08161732]
[1674084948904,16.13579423,1524.4,1524.3,0.08161732]
[1674084949108,15.79462735,1524.4,1524.3,0.08161732]
[1674084949587,13.34006471,1524.4,1524.3,0.08161732]
[1674084949758,14.02362735,1524.4,1524.3,0.08161732]
[1674084950270,13.34006471,1524.4,1524.3,0.08161732]
[1674084951645,14.02362735,1524.4,1524.3,0.08161732]
[1674084951907,15.90579423,1524.4,1524.3,0.08161732]
[1674084952498,17.27001447,1524.4,1524.3,0.08161732]
[1674084953342,16.24528495,1524.4,1524.3,0.08161732]
[1674084953550,14.36537687,1524.4,1524.3,0.08161732]
[1674084953788,14.02365774,1524.4,1524.3,0.08161732]
[1674084954012,12.05567774,1524.4,1524.3,0.08161732]
[1674084954542,0.41903718,1524.4,1524.3,0.08161732]
[1674084954847,1.53400368,1524.7,1524.3,9.72599732]
[1674084954848,2.71726303,1524.7,1524.3,9.72599732]
[1674084955006,1.94468863,1524.8,1524.3,21.36775732]
[1674084955224,1.70890519,1524.8,1524.4,3.13677573]
[1674084955436,1.70890519,1524.8,1524.5,13.11891]
[1674084955437,0.68359303,1524.8,1524.5,13.11891]
[1674084955639,0.68359303,1524.8,1524.6,1.311891]
[1674084955988,0.68359303,1524.8,1524.6,7.870971]
[1674084956173,1.70890519,1524.9,1524.6,7.936971]
[1674084956624,0.68359303,1524.9,1524.6,9.483971]
[1674084956847,0.68359303,1524.9,1524.7,0.9483971]
[1674084957344,1.77490519,1525.0,1524.7,2.4893971]
[1674084957554,0.68359303,1524.9,1524.7,3.4893971]
[1674084957805,0.68359303,1525.0,1524.8,0.34893971]
[1674084958707,1.70890519,1525.0,1524.8,0.34893971]
[1674084958912,0.68359303,1525.0,1524.8,0.34893971]
[1674084959181,0.68359303,1524.9,1524.7,1.0143971]
[1674084959345,5.61838303,1524.9,1524.5,1.611]
[1674084959564,4.68438303,1524.9,1524.5,1.545]
[1674084959755,4.61838303,1524.9,1524.6,0.1545]
[1674084959962,5.64369519,1524.9,1524.6,0.1545]
[1674084960244,6.70969519,1524.9,1524.6,0.1545]
[1674084960460,5.70969519,1524.9,1524.6,0.1545]
[1674084960669,0.68359303,1524.8,1524.6,0.1545]
[1674084962204,0.68559303,1524.8,1524.6,0.1545]
[1674084962428,0.68359303,1524.8,1524.6,0.1545]
[1674084962983,5.70969519,1524.9,1524.6,0.1545]
[1674084963147,5.70969519,1524.9,1524.5,1.545]
[1674084963148,0.68359303,1524.8,1524.5,1.545]
[1674084964574,5.70969519,1524.9,1524.5,1.545]
[1674084966860,7.67711519,1524.9,1524.5,1.545]
[1674084967072,5.70967519,1524.9,1524.5,1.545]
[1674084967502,5.70967519,1524.9,1524.5,3.018063]
[1674084967683,4.68436303,1524.9,1524.5,3.018063]
[1674084968028,4.61836303,1524.9,1524.5,3.018063]
[1674084968560,4.62036303,1524.9,1524.5,3.018063]
[1674084968715,4.61836303,1524.9,1524.5,3.018063]
[1674084969761,4.61836303,1524.9,1524.5,9.577513]
[1674084969973,4.61836303,1524.9,1524.5,9.643513]
[1674084970392,0.68359303,1524.9,1524.6,15.6223013]
[1674084970611,3.55042216,1525.0,1524.6,15.6883013]
[1674084970612,3.14270303,1525.0,1524.6,15.6883013]
[1674084972865,0.68359303,1524.9,1524.6,1.0303513]
[1674084973181,0.68359303,1524.9,1524.5,8.17236]
[1674084973182,1.96747,1524.8,1524.5,8.17236]
[1674084976435,1.96747,1524.8,1524.5,1.613]
[1674084976629,1.96747,1524.8,1524.5,8.10652]
[1674084976839,4.68439303,1524.9,1524.5,14.73204]
[1674084977013,4.61839303,1524.9,1524.5,14.73204]
[1674084977228,3.9348,1524.9,1524.5,13.18504]
[1674084977590,7.61110519,1524.9,1524.5,2.194579]
[1674084977745,6.58639303,1524.7,1524.4,0.066]
[1674084977960,6.58639303,1524.7,1524.3,12.10321732]
[1674084977961,5.51934062,1524.6,1524.3,12.16921732]
[1674084978220,4.49363,1524.6,1524.3,12.16921732]
[1674084978384,4.42763,1524.6,1524.3,12.16921732]
[1674084978796,4.42763,1524.6,1524.3,12.16532407]
[1674084979033,0.492,1524.6,1524.3,12.16532407]
[1674084979243,2.71711303,1524.8,1524.4,1.535]
[1674084979508,2.65111303,1524.8,1524.6,1.0]
[1674084979695,2.65111303,1524.8,1524.5,6.62552]
[1674084979912,2.65111303,1524.8,1524.5,0.066]
[1674084980087,2.65111303,1524.8,1524.4,16.90122341]
[1674084980297,2.65111303,1524.8,1524.4,15.36622341]
[1674084980511,2.65111303,1524.8,1524.4,2.24676341]
[1674084980770,1.96775,1524.6,1524.3,12.16532407]
[1674084980981,9.19499759,1524.6,1524.3,12.16532407]
[1674084981200,9.26099759,1524.6,1524.3,12.16532407]
[1674084981350,2.03375,1524.6,1524.3,12.16532407]
[1674084981558,1.96775,1524.6,1524.3,12.16532407]
[1674084981786,1.24159303,1524.7,1524.3,34.5417602]
[1674084981993,0.68359303,1524.7,1524.3,36.0887602]
[1674084982222,2.65120303,1524.7,1524.3,22.9680002]
[1674084982395,0.066,1524.8,1524.5,1.547]
[1674084982609,1.17549303,1524.9,1524.5,21.22556]
[1674084982880,1.17549303,1524.9,1524.5,21.29156]
[1674084983095,1.17549303,1524.9,1524.6,2.129156]
[1674084983401,3.29174759,1524.8,1524.5,0.066]
[1674084983558,1.70890519,1524.7,1524.3,12.16532407]
[1674084983770,8.08167114,1524.6,1524.3,12.16532407]
[1674084984009,8.63967114,1524.6,1524.3,12.16532407]
[1674084984202,9.6649833,1524.6,1524.3,12.16532407]
[1674084984835,0.68359303,1524.5,1524.3,12.16532407]
[1674084985025,4.49344,1524.6,1524.3,12.16532407]
[1674084985237,1.74959303,1524.7,1524.4,1.21653241]
[1674084985492,0.74959303,1524.8,1524.4,22.43535241]
[1674084985667,0.74959303,1524.8,1524.5,2.24353524]
[1674084985668,0.68359303,1524.8,1524.5,2.24353524]
[1674084985875,0.68359303,1524.7,1524.4,0.066]
[1674084986088,0.68359303,1524.7,1524.3,12.16532407]
[1674084986413,3.93544,1524.6,1524.3,12.16532407]
[1674084987604,3.78374759,1524.5,1524.3,12.16532407]
[1674084987840,6.58753303,1524.4,1524.3,12.16532407]
[1674084988131,12.94528062,1524.4,1524.3,0.14372407]
[1674084988290,13.43738062,1524.4,1524.3,0.07772407]
[1674084988498,15.37155592,1524.4,1524.3,0.07772407]
[1674084990660,16.39686808,1524.4,1524.3,0.07772407]
[1674084991121,19.37518313,1524.4,1524.3,0.06477485]
[1674084991329,21.73011609,1524.4,1524.3,0.06477485]
[1674084991614,18.12528465,1524.4,1524.3,0.06477485]
[1674084991816,17.2586348,1524.4,1524.3,0.06477485]
[1674084992384,17.94079875,1524.4,1524.3,0.06477485]
[1674084992590,17.2586348,1524.4,1524.3,0.06477485]
[1674084992849,19.37618313,1524.4,1524.3,0.06477485]
[1674084993061,20.01292486,1524.4,1524.3,0.06477485]
[1674084993470,21.73116893,1524.4,1524.3,0.06477485]
[1674084993779,20.36689585,1524.4,1524.3,0.06477485]
[1674084994191,21.73135067,1524.4,1524.3,0.06477485]
[1674084994401,8.35775941,1524.4,1524.3,1.03477485]
[1674084994617,0.066,1524.4,1524.3,1.03477485]
[1674084994876,1.96776,1524.6,1524.3,1.03477485]
[1674084995045,0.68208766,1524.6,1524.3,1.03477485]
[1674084995254,2.64983766,1524.6,1524.3,1.25021006]
[1674084995875,1.96775,1524.6,1524.3,1.25021006]
[1674084996716,4.96775,1524.6,1524.3,1.25021006]
[1674084997767,5.64983766,1524.6,1524.3,0.28021006]
[1674084998032,4.46583525,1524.5,1524.3,0.06477485]
[1674084998202,14.99605218,1524.4,1524.3,0.06477485]
[1674084998416,15.06205218,1524.4,1524.3,0.06477485]
[1674084998643,8.81276296,1524.4,1524.3,0.06477485]
[1674084998819,3.066,1524.4,1524.3,1.10077485]
[1674084999028,1.96795,1524.5,1524.3,1.22281006]
[1674084999029,2.03395,1524.5,1524.3,1.22281006]
[1674084999290,2.03382,1524.6,1524.3,1.22281006]
[1674084999460,1.96782,1524.6,1524.3,1.22281006]
[1674084999669,1.96782,1524.6,1524.3,0.06477485]
[1674084999670,4.61760123,1524.6,1524.3,0.06477485]
[1674084999900,1.96798,1524.4,1524.3,0.06477485]
[1674085000093,5.25972759,1524.4,1524.3,0.06477485]
[1674085000328,7.97566882,1524.4,1524.3,0.06477485]
[1674085000540,15.91748364,1524.4,1524.3,0.06477485]
[1674085000711,17.43294823,1524.4,1524.3,0.06477485]
[1674085000921,18.0696705,1524.4,1524.3,0.06477485]
[1674085001259,15.50830591,1524.4,1524.3,0.06477485]
[1674085001473,14.18962241,1524.4,1524.3,0.06477485]
[1674085002342,16.41856418,1524.4,1524.3,0.06477485]
[1674085002705,16.759987,1524.4,1524.3,0.06477485]
[1674085002916,16.41842982,1524.4,1524.3,0.06477485]
[1674085004447,0.02967087,1524.2,1524.0,0.13531383]
[1674085004636,4.83574759,1524.1,1524.0,0.13531383]
[1674085004844,8.32794759,1524.1,1524.0,0.13531383]
[1674085005178,9.39394759,1524.1,1524.0,0.13531383]
[1674085005837,13.33068759,1524.1,1524.0,0.13531383]
[1674085006007,15.19218034,1524.1,1524.0,0.13531383]
[1674085007129,0.99072653,1523.9,1523.8,0.15099931]
[1674085007347,5.82947412,1523.9,1523.8,0.15099931]
[1674085007590,13.76999412,1523.9,1523.8,0.15099931]
[1674085007757,19.26076811,1523.9,1523.8,0.15099931]
[1674085007967,20.80776811,1523.9,1523.4,0.066]
[1674085008217,7.06649337,1523.5,1523.3,0.15792487]
[1674085008388,11.16882759,1523.4,1522.6,2.483597]
[1674085008607,11.16882759,1523.4,1522.6,4.34305719]
[1674085008608,3.52174759,1523.3,1522.6,4.34305719]
[1674085008860,7.23431934,1523.4,1522.7,1.14015512]
[1674085008861,5.03536,1523.4,1522.7,1.14015512]
[1674085009082,0.066,1523.4,1523.1,1.534]
[1674085009285,3.0,1523.6,1523.2,0.14840305]
[1674085009286,2.0351,1523.6,1523.2,0.14840305]
[1674085009441,1.9693,1523.4,1523.2,0.14840305]
[1674085009648,10.23034759,1523.4,1523.2,0.14840305]
[1674085009919,11.83234759,1523.4,1523.2,0.14840305]
[1674085010439,4.82674759,1523.3,1523.2,0.14840305]
[1674085010660,11.76554759,1523.3,1523.2,0.14840305]
[1674085010959,9.91117235,1523.3,1523.2,0.14840305]
[1674085011172,8.32714759,1523.3,1523.2,0.14840305]
[1674085011964,10.29654759,1523.3,1523.2,0.14840305]
[1674085012178,11.83254759,1523.3,1523.2,0.14840305]
[1674085013384,12.32494759,1523.3,1523.2,0.14840305]
[1674085013609,8.81954759,1523.3,1523.2,0.14840305]
[1674085013918,0.066,1523.3,1523.2,0.14840305]
[1674085014067,1.96915,1523.5,1523.2,0.14840305]
[1674085014274,5.26112759,1523.4,1523.2,0.14840305]
[1674085014605,3.29174759,1523.3,1523.2,0.14840305]
[1674085014805,7.72294759,1523.3,1523.2,0.14840305]
[1674085015010,10.29654759,1523.3,1523.2,0.14840305]
[1674085015221,13.37308035,1523.3,1523.2,0.14840305]
[1674085016379,14.91708035,1523.3,1523.2,3.05e-06]
[1674085016594,15.63948035,1523.3,1523.2,3.05e-06]
[1674085018184,14.09348035,1523.3,1523.2,3.05e-06]
[1674085018624,0.066,1523.3,1523.2,3.05e-06]
[1674085018840,1.96937,1523.4,1523.2,3.05e-06]
[1674085019222,2.03517,1523.5,1523.2,3.05e-06]
[1674085019430,4.0042,1523.6,1523.2,3.05e-06]
[1674085019686,3.29174759,1523.5,1523.2,3.05e-06]
[1674085019864,3.9388,1523.3,1523.2,3.05e-06]
[1674085020083,7.23054759,1523.3,1523.2,3.05e-06]
[1674085020317,7.29654759,1523.3,1523.2,3.05e-06]
[1674085020505,10.45146635,1523.3,1523.2,3.05e-06]
[1674085020704,13.68146635,1523.3,1523.2,3.05e-06]
[1674085021882,23.66146635,1523.3,1523.2,3.05e-06]
[1674085022092,0.00199695,1523.1,1522.6,0.004597]
[1674085022261,3.29174759,1523.0,1522.6,0.004597]
[1674085022470,5.26169759,1522.9,1522.6,0.004597]
[1674085022718,3.29174759,1522.8,1522.6,0.004597]
[1674085023057,3.29174759,1522.8,1522.6,5.004597]